[Event "Titled Tuesday Blitz December 7 2021"]
[White "Kamsky, Gata"]
[Black "Ivanchuk, Vasyl"]
[WhiteFideId "2000024"]
[BlackFideId "14100010"]
[WhiteElo "2904"]
[BlackElo "2827"]
[Result "0-1"]
[Round "08"]
[TimeControl "180+1"]
[Date "2021.12.07"]
[WhiteClock "0:00:38"]
[BlackClock "0:00:42"]

1. e4 {[%clk 0:03:00]}  c5 {[%clk 0:02:58]} 2. Nf3 {[%clk 0:03:00]}  d6 {[%clk 0:02:58]} 3. Nc3 {[%clk 0:02:54]}  Nf6 {[%clk 0:02:57]} 4. Bc4 {[%clk 0:02:50]}  Nc6 {[%clk 0:02:57]} 5. d3 {[%clk 0:02:48]}  Bg4 {[%clk 0:02:46]} 6. h3 {[%clk 0:02:47]}  Bh5 {[%clk 0:02:46]} 7. g4 {[%clk 0:02:45]}  Bg6 {[%clk 0:02:46]} 8. Bb5 {[%clk 0:02:33]}  Nd7 {[%clk 0:02:39]} 9. Bxc6 {[%clk 0:02:32]}  bxc6 {[%clk 0:02:39]} 10. Be3 {[%clk 0:02:20]}  e5 {[%clk 0:02:34]} 11. Nd2 {[%clk 0:02:08]}  Be7 {[%clk 0:02:28]} 12. Qe2 {[%clk 0:01:57]}  Nf8 {[%clk 0:02:24]} 13. O-O-O {[%clk 0:01:45]}  Ne6 {[%clk 0:02:24]} 14. Nc4 {[%clk 0:01:43]}  f6 {[%clk 0:02:10]} 15. Bd2 {[%clk 0:01:40]}  d5 {[%clk 0:02:05]} 16. Na3 {[%clk 0:01:38]}  c4 {[%clk 0:01:53]} 17. dxc4 {[%clk 0:01:32]}  Bxa3 {[%clk 0:01:51]} 18. bxa3 {[%clk 0:01:31]}  d4 {[%clk 0:01:49]} 19. Na4 {[%clk 0:01:29]}  c5 {[%clk 0:01:39]} 20. Nb2 {[%clk 0:01:28]}  Qb6 {[%clk 0:01:32]} 21. Kb1 {[%clk 0:01:25]}  Rb8 {[%clk 0:01:25]} 22. Bc1 {[%clk 0:01:24]}  O-O {[%clk 0:01:18]} 23. Ka1 {[%clk 0:01:23]}  Rf7 {[%clk 0:01:15]} 24. f3 {[%clk 0:01:06]}  Rfb7 {[%clk 0:01:14]} 25. Qe1 {[%clk 0:01:01]}  Nf4 {[%clk 0:01:10]} 26. Rh2 {[%clk 0:00:58]}  Bf7 {[%clk 0:01:03]} 27. c3 {[%clk 0:00:51]}  Ne6 {[%clk 0:01:03]} 28. h4 {[%clk 0:00:43]}  Qa6 {[%clk 0:00:59]} 29. a4 {[%clk 0:00:41]}  Qxa4 {[%clk 0:00:56]} 30. g5 {[%clk 0:00:38]}  dxc3 {[%clk 0:00:42]} 0-1


[Site "https://www.chess.com"]

[Event "Titled Tuesday Blitz December 7 2021"]
[White "Khanin, Semen"]
[Black "Tologon tegin, Semetei"]
[WhiteFideId "4111990"]
[BlackFideId "13800574"]
[WhiteElo "2760"]
[BlackElo "2623"]
[Result "1/2-1/2"]
[Round "08"]
[TimeControl "180+1"]
[Date "2021.12.07"]
[WhiteClock "0:00:20"]
[BlackClock "0:00:13"]

1. Nf3 {[%clk 0:03:00]}  b6 {[%clk 0:02:56]} 2. g3 {[%clk 0:03:00]}  Bb7 {[%clk 0:02:56]} 3. Bg2 {[%clk 0:03:00]}  g6 {[%clk 0:02:56]} 4. a4 {[%clk 0:02:56]}  a5 {[%clk 0:02:54]} 5. O-O {[%clk 0:02:55]}  Bg7 {[%clk 0:02:54]} 6. d4 {[%clk 0:02:55]}  Nf6 {[%clk 0:02:48]} 7. Nc3 {[%clk 0:02:55]}  O-O {[%clk 0:02:47]} 8. Re1 {[%clk 0:02:56]}  d5 {[%clk 0:02:39]} 9. Ne5 {[%clk 0:02:54]}  Nbd7 {[%clk 0:02:36]} 10. f4 {[%clk 0:02:44]}  e6 {[%clk 0:02:36]} 11. b3 {[%clk 0:02:39]}  Ne4 {[%clk 0:02:30]} 12. Nxe4 {[%clk 0:02:35]}  dxe4 {[%clk 0:02:30]} 13. Bb2 {[%clk 0:02:26]}  f5 {[%clk 0:02:25]} 14. c4 {[%clk 0:02:23]}  Nxe5 {[%clk 0:02:18]} 15. fxe5 {[%clk 0:02:23]}  Rf7 {[%clk 0:02:07]} 16. e3 {[%clk 0:02:21]}  Rd7 {[%clk 0:02:04]} 17. Qe2 {[%clk 0:02:18]}  h5 {[%clk 0:02:02]} 18. Rad1 {[%clk 0:02:17]}  Qg5 {[%clk 0:02:00]} 19. Qf2 {[%clk 0:02:15]}  Rad8 {[%clk 0:01:59]} 20. Ba3 {[%clk 0:02:09]}  Bxe5 {[%clk 0:01:43]} 21. Bb2 {[%clk 0:02:08]}  Bg7 {[%clk 0:01:42]} 22. Rd2 {[%clk 0:01:52]}  c5 {[%clk 0:01:28]} 23. Bc3 {[%clk 0:01:51]}  Bf6 {[%clk 0:01:10]} 24. Red1 {[%clk 0:01:46]}  cxd4 {[%clk 0:01:08]} 25. Bxd4 {[%clk 0:01:46]}  Bxd4 {[%clk 0:00:59]} 26. Rxd4 {[%clk 0:01:46]}  Rxd4 {[%clk 0:00:56]} 27. Rxd4 {[%clk 0:01:39]}  Rxd4 {[%clk 0:00:55]} 28. exd4 {[%clk 0:01:38]}  Qc1+ {[%clk 0:00:55]} 29. Bf1 {[%clk 0:01:29]}  e3 {[%clk 0:00:53]} 30. Qf4 {[%clk 0:01:29]}  Be4 {[%clk 0:00:30]} 31. Qb8+ {[%clk 0:01:12]}  Kh7 {[%clk 0:00:30]} 32. Qc7+ {[%clk 0:01:07]}  Kh6 {[%clk 0:00:30]} 33. Qf4+ {[%clk 0:01:03]}  g5 {[%clk 0:00:30]} 34. Qe5 {[%clk 0:01:03]}  h4 {[%clk 0:00:19]} 35. g4 {[%clk 0:00:27]}  e2 {[%clk 0:00:12]} 36. Qf6+ {[%clk 0:00:21]}  Kh7 {[%clk 0:00:12]} 37. Qf7+ {[%clk 0:00:20]}  Kh6 {[%clk 0:00:12]} 38. Qf6+ {[%clk 0:00:19]}  Kh7 {[%clk 0:00:13]} 39. Qf7+ {[%clk 0:00:20]}  Kh6 {[%clk 0:00:13]} 40. Qf6+ {[%clk 0:00:20]} 1/2-1/2


[Site "https://www.chess.com"]

[Event "Titled Tuesday Blitz December 7 2021"]
[White "Kim, Sergey"]
[Black "Nilsen, Tobias Lang"]
[WhiteFideId "13700570"]
[BlackFideId "1521624"]
[WhiteElo "2594"]
[BlackElo "2446"]
[Result "0-1"]
[Round "08"]
[TimeControl "180+1"]
[Date "2021.12.07"]
[WhiteClock "0:00:09"]
[BlackClock "0:00:54"]

1. d4 {[%clk 0:03:00]}  Nf6 {[%clk 0:02:59]} 2. c4 {[%clk 0:03:00]}  c5 {[%clk 0:02:54]} 3. d5 {[%clk 0:03:00]}  e6 {[%clk 0:02:55]} 4. Nc3 {[%clk 0:02:59]}  exd5 {[%clk 0:02:56]} 5. cxd5 {[%clk 0:03:00]}  d6 {[%clk 0:02:56]} 6. e4 {[%clk 0:03:00]}  g6 {[%clk 0:02:57]} 7. Nge2 {[%clk 0:03:00]}  Bg7 {[%clk 0:02:57]} 8. Ng3 {[%clk 0:03:00]}  h5 {[%clk 0:02:58]} 9. h4 {[%clk 0:02:59]}  a6 {[%clk 0:02:45]} 10. a4 {[%clk 0:02:58]}  Nbd7 {[%clk 0:02:40]} 11. Be2 {[%clk 0:02:58]}  O-O {[%clk 0:02:39]} 12. Bg5 {[%clk 0:02:55]}  Qc7 {[%clk 0:02:39]} 13. Qd2 {[%clk 0:02:52]}  Rb8 {[%clk 0:02:39]} 14. O-O {[%clk 0:02:50]}  c4 {[%clk 0:02:34]} 15. f4 {[%clk 0:02:43]}  b5 {[%clk 0:02:29]} 16. e5 {[%clk 0:02:14]}  Nh7 {[%clk 0:02:22]} 17. e6 {[%clk 0:02:09]}  f6 {[%clk 0:02:18]} 18. f5 {[%clk 0:01:52]}  fxg5 {[%clk 0:02:11]} 19. fxg6 {[%clk 0:01:48]}  Nhf6 {[%clk 0:01:55]} 20. hxg5 {[%clk 0:01:44]}  Ng4 {[%clk 0:01:53]} 21. Rf7 {[%clk 0:01:08]}  Qc5+ {[%clk 0:01:47]} 22. Kh1 {[%clk 0:01:07]}  Rxf7 {[%clk 0:01:16]} 23. gxf7+ {[%clk 0:01:06]}  Kf8 {[%clk 0:01:16]} 24. Nxh5 {[%clk 0:00:31]}  Nf2+ {[%clk 0:01:12]} 25. Kh2 {[%clk 0:00:29]}  Ne5 {[%clk 0:01:08]} 26. Nxg7 {[%clk 0:00:20]}  Kxg7 {[%clk 0:01:06]} 27. Qf4 {[%clk 0:00:19]}  Bxe6 {[%clk 0:00:54]} 28. Qf6+ {[%clk 0:00:18]}  Kf8 {[%clk 0:00:54]} 29. dxe6 {[%clk 0:00:17]}  Nfg4+ {[%clk 0:00:53]} 30. Bxg4 {[%clk 0:00:09]}  Nxg4+ {[%clk 0:00:53]} 31. Kg3 {[%clk 0:00:10]}  Nxf6 {[%clk 0:00:54]} 32. gxf6 {[%clk 0:00:09]}  Qg5+ {[%clk 0:00:54]} 0-1


[Site "https://www.chess.com"]

[Event "Titled Tuesday Blitz December 7 2021"]
[White "Kislinsky, Alexey"]
[Black "Zierk, Steven"]
[WhiteFideId "14108801"]
[BlackFideId "2034255"]
[WhiteElo "2726"]
[BlackElo "2873"]
[Result "1-0"]
[Round "08"]
[TimeControl "180+1"]
[Date "2021.12.07"]
[WhiteClock "0:00:12"]
[BlackClock "0:00:01"]

1. e4 {[%clk 0:03:00]}  c5 {[%clk 0:02:55]} 2. Nc3 {[%clk 0:02:55]}  Nc6 {[%clk 0:02:55]} 3. f4 {[%clk 0:02:55]}  g6 {[%clk 0:02:48]} 4. Nf3 {[%clk 0:02:56]}  Bg7 {[%clk 0:02:48]} 5. a3 {[%clk 0:02:56]}  d6 {[%clk 0:02:36]} 6. Bc4 {[%clk 0:02:55]}  Nf6 {[%clk 0:02:29]} 7. d3 {[%clk 0:02:53]}  O-O {[%clk 0:02:24]} 8. h3 {[%clk 0:02:53]}  e6 {[%clk 0:02:23]} 9. Ba2 {[%clk 0:02:52]}  d5 {[%clk 0:02:17]} 10. Bd2 {[%clk 0:02:52]}  dxe4 {[%clk 0:02:15]} 11. dxe4 {[%clk 0:02:50]}  Nd4 {[%clk 0:02:03]} 12. O-O {[%clk 0:02:48]}  b5 {[%clk 0:01:32]} 13. e5 {[%clk 0:02:06]}  Nd7 {[%clk 0:01:21]} 14. Nxd4 {[%clk 0:02:04]}  cxd4 {[%clk 0:01:21]} 15. Ne4 {[%clk 0:02:04]}  Bb7 {[%clk 0:01:18]} 16. Nd6 {[%clk 0:02:02]}  Bc6 {[%clk 0:01:18]} 17. Qe1 {[%clk 0:01:30]}  Nc5 {[%clk 0:00:56]} 18. Bb4 {[%clk 0:01:23]}  Na4 {[%clk 0:00:53]} 19. Ba5 {[%clk 0:00:52]}  Qb8 {[%clk 0:00:40]} 20. Rb1 {[%clk 0:00:50]}  a6 {[%clk 0:00:33]} 21. Qf2 {[%clk 0:00:46]}  Ra7 {[%clk 0:00:24]} 22. Qxd4 {[%clk 0:00:42]}  Rd7 {[%clk 0:00:23]} 23. Rbd1 {[%clk 0:00:35]}  Qa8 {[%clk 0:00:14]} 24. Rf2 {[%clk 0:00:32]}  Rxd6 {[%clk 0:00:12]} 25. Qxd6 {[%clk 0:00:30]}  Nxb2 {[%clk 0:00:13]} 26. Rdd2 {[%clk 0:00:27]}  Nc4 {[%clk 0:00:11]} 27. Bxc4 {[%clk 0:00:27]}  bxc4 {[%clk 0:00:12]} 28. c3 {[%clk 0:00:16]}  Bd5 {[%clk 0:00:09]} 29. Rb2 {[%clk 0:00:17]}  Rc8 {[%clk 0:00:08]} 30. Qd7 {[%clk 0:00:13]}  Bc6 {[%clk 0:00:06]} 31. Qe7 {[%clk 0:00:13]}  Bf8 {[%clk 0:00:05]} 32. Qh4 {[%clk 0:00:12]}  Bc5 {[%clk 0:00:05]} 33. Kh2 {[%clk 0:00:11]}  Bxf2 {[%clk 0:00:02]} 34. Rxf2 {[%clk 0:00:12]}  Qb7 {[%clk 0:00:01]} 35. Bb4 {[%clk 0:00:12]} 1-0


[Site "https://www.chess.com"]

[Event "Titled Tuesday Blitz December 7 2021"]
[White "Koellner, Ruben Gideon"]
[Black "Itkis, Boris"]
[WhiteFideId "12993093"]
[BlackFideId "1209167"]
[WhiteElo "2569"]
[BlackElo "2374"]
[Result "1-0"]
[Round "08"]
[TimeControl "180+1"]
[Date "2021.12.07"]
[WhiteClock "0:00:09"]
[BlackClock "0:00:01"]

1. d4 {[%clk 0:03:00]}  d5 {[%clk 0:02:58]} 2. Bf4 {[%clk 0:02:59]}  Bg4 {[%clk 0:02:56]} 3. Nf3 {[%clk 0:02:58]}  Bxf3 {[%clk 0:02:52]} 4. gxf3 {[%clk 0:02:57]}  Nf6 {[%clk 0:02:52]} 5. e3 {[%clk 0:02:57]}  e6 {[%clk 0:02:52]} 6. c4 {[%clk 0:02:57]}  Bd6 {[%clk 0:02:42]} 7. Bg3 {[%clk 0:02:57]}  O-O {[%clk 0:02:27]} 8. Nc3 {[%clk 0:02:56]}  Nbd7 {[%clk 0:02:21]} 9. c5 {[%clk 0:02:47]}  Bxg3 {[%clk 0:02:20]} 10. hxg3 {[%clk 0:02:48]}  Re8 {[%clk 0:02:17]} 11. Bd3 {[%clk 0:02:46]}  e5 {[%clk 0:02:17]} 12. Kf1 {[%clk 0:02:46]}  g6 {[%clk 0:01:54]} 13. Kg2 {[%clk 0:02:45]}  exd4 {[%clk 0:01:40]} 14. exd4 {[%clk 0:02:46]}  c6 {[%clk 0:01:40]} 15. Qd2 {[%clk 0:02:40]}  Qe7 {[%clk 0:01:38]} 16. b4 {[%clk 0:02:37]}  Qf8 {[%clk 0:01:37]} 17. a4 {[%clk 0:02:36]}  Qg7 {[%clk 0:01:26]} 18. b5 {[%clk 0:02:28]}  Nf8 {[%clk 0:01:25]} 19. Rhb1 {[%clk 0:02:15]}  Re7 {[%clk 0:01:24]} 20. a5 {[%clk 0:02:13]}  cxb5 {[%clk 0:01:07]} 21. Rxb5 {[%clk 0:01:51]}  Ne6 {[%clk 0:01:05]} 22. Bf1 {[%clk 0:01:47]}  Nh5 {[%clk 0:00:42]} 23. Rb4 {[%clk 0:01:42]}  Rd8 {[%clk 0:00:40]} 24. Rab1 {[%clk 0:01:37]}  Rdd7 {[%clk 0:00:39]} 25. Bb5 {[%clk 0:01:35]}  Rd8 {[%clk 0:00:37]} 26. Ba4 {[%clk 0:01:34]}  f5 {[%clk 0:00:27]} 27. Bb3 {[%clk 0:01:18]}  Nf6 {[%clk 0:00:25]} 28. Ne2 {[%clk 0:01:15]}  a6 {[%clk 0:00:22]} 29. Ba4 {[%clk 0:01:06]}  Ne8 {[%clk 0:00:14]} 30. Rb6 {[%clk 0:00:55]}  Qf7 {[%clk 0:00:13]} 31. R1b4 {[%clk 0:00:43]}  N8g7 {[%clk 0:00:12]} 32. Bb3 {[%clk 0:00:30]}  f4 {[%clk 0:00:12]} 33. Nc3 {[%clk 0:00:19]}  fxg3 {[%clk 0:00:09]} 34. fxg3 {[%clk 0:00:20]}  Ng5 {[%clk 0:00:10]} 35. Qf4 {[%clk 0:00:14]}  Qxf4 {[%clk 0:00:06]} 36. gxf4 {[%clk 0:00:15]}  N5e6 {[%clk 0:00:06]} 37. Bxd5 {[%clk 0:00:14]}  Kf8 {[%clk 0:00:05]} 38. Bxe6 {[%clk 0:00:13]}  Nxe6 {[%clk 0:00:05]} 39. d5 {[%clk 0:00:03]}  Nxc5 {[%clk 0:00:04]} 40. Kf2 {[%clk 0:00:04]}  Nd7 {[%clk 0:00:04]} 41. Rxb7 {[%clk 0:00:03]}  Nf6 {[%clk 0:00:03]} 42. Rxe7 {[%clk 0:00:04]}  Kxe7 {[%clk 0:00:04]} 43. Rb6 {[%clk 0:00:04]}  Rd6 {[%clk 0:00:04]} 44. Rxd6 {[%clk 0:00:03]}  Kxd6 {[%clk 0:00:05]} 45. Ne4+ {[%clk 0:00:04]}  Ke7 {[%clk 0:00:01]} 46. Nc5 {[%clk 0:00:02]}  Nxd5 {[%clk 0:00:01]} 47. Nxa6 {[%clk 0:00:03]}  h5 {[%clk 0:00:01]} 48. Kg3 {[%clk 0:00:02]}  Kd6 {[%clk 0:00:01]} 49. Nb8 {[%clk 0:00:01]}  Nb4 {[%clk 0:00:01]} 50. a6 {[%clk 0:00:01]}  Kc7 {[%clk 0:00:02]} 51. a7 {[%clk 0:00:01]}  Kb7 {[%clk 0:00:02]} 52. Nd7 {[%clk 0:00:01]}  Kxa7 {[%clk 0:00:02]} 53. Ne5 {[%clk 0:00:01]}  Nd5 {[%clk 0:00:03]} 54. Nxg6 {[%clk 0:00:02]}  Kb6 {[%clk 0:00:03]} 55. Kh4 {[%clk 0:00:02]}  Kc7 {[%clk 0:00:03]} 56. Kxh5 {[%clk 0:00:03]}  Kd6 {[%clk 0:00:04]} 57. Kg5 {[%clk 0:00:04]}  Ke6 {[%clk 0:00:04]} 58. f5+ {[%clk 0:00:05]}  Kf7 {[%clk 0:00:04]} 59. Nf4 {[%clk 0:00:06]}  Nf6 {[%clk 0:00:03]} 60. Ng6 {[%clk 0:00:06]}  Nh7+ {[%clk 0:00:03]} 61. Kf4 {[%clk 0:00:06]}  Nf6 {[%clk 0:00:04]} 62. Ne5+ {[%clk 0:00:06]}  Kg7 {[%clk 0:00:04]} 63. Ng4 {[%clk 0:00:07]}  Nh5+ {[%clk 0:00:04]} 64. Kg5 {[%clk 0:00:07]}  Ng3 {[%clk 0:00:04]} 65. f6+ {[%clk 0:00:07]}  Kf7 {[%clk 0:00:04]} 66. Nh6+ {[%clk 0:00:08]}  Kf8 {[%clk 0:00:04]} 67. Nf5 {[%clk 0:00:07]}  Ne2 {[%clk 0:00:04]} 68. Kg6 {[%clk 0:00:07]}  Nc3 {[%clk 0:00:04]} 69. Nd4 {[%clk 0:00:07]}  Nd5 {[%clk 0:00:01]} 70. Ne6+ {[%clk 0:00:07]}  Ke8 {[%clk 0:00:01]} 71. f7+ {[%clk 0:00:08]}  Kd7 {[%clk 0:00:01]} 72. f8=Q {[%clk 0:00:09]} 1-0


[Site "https://www.chess.com"]

[Event "Titled Tuesday Blitz December 7 2021"]
[White "Korchmar, Vasiliy"]
[Black "Yilmaz, Mustafa"]
[WhiteFideId "24131750"]
[BlackFideId "6302718"]
[WhiteElo "2709"]
[BlackElo "2983"]
[Result "1-0"]
[Round "08"]
[TimeControl "180+1"]
[Date "2021.12.07"]
[WhiteClock "0:00:06"]
[BlackClock "0:00:39"]

1. e4 {[%clk 0:03:00]}  e5 {[%clk 0:02:59]} 2. Nf3 {[%clk 0:02:59]}  Nc6 {[%clk 0:02:59]} 3. Bb5 {[%clk 0:02:59]}  a6 {[%clk 0:02:59]} 4. Ba4 {[%clk 0:02:59]}  Nf6 {[%clk 0:03:00]} 5. d3 {[%clk 0:02:59]}  b5 {[%clk 0:02:59]} 6. Bb3 {[%clk 0:02:59]}  Bc5 {[%clk 0:02:59]} 7. O-O {[%clk 0:02:55]}  h6 {[%clk 0:02:57]} 8. c3 {[%clk 0:02:47]}  d6 {[%clk 0:02:57]} 9. Nbd2 {[%clk 0:02:41]}  O-O {[%clk 0:02:55]} 10. Re1 {[%clk 0:02:41]}  Bb6 {[%clk 0:02:46]} 11. Nf1 {[%clk 0:02:39]}  Na5 {[%clk 0:02:46]} 12. Bc2 {[%clk 0:02:38]}  c5 {[%clk 0:02:47]} 13. a4 {[%clk 0:02:29]}  Bb7 {[%clk 0:02:45]} 14. Ng3 {[%clk 0:02:26]}  Re8 {[%clk 0:02:45]} 15. Nf5 {[%clk 0:02:21]}  d5 {[%clk 0:02:35]} 16. Qe2 {[%clk 0:01:57]}  c4 {[%clk 0:02:32]} 17. dxc4 {[%clk 0:01:30]}  dxe4 {[%clk 0:02:30]} 18. N3h4 {[%clk 0:01:30]}  bxc4 {[%clk 0:02:17]} 19. Be3 {[%clk 0:00:47]}  Re6 {[%clk 0:02:16]} 20. Rad1 {[%clk 0:00:37]}  Qc7 {[%clk 0:02:17]} 21. Qd2 {[%clk 0:00:27]}  Bxe3 {[%clk 0:02:05]} 22. Rxe3 {[%clk 0:00:28]}  Kh7 {[%clk 0:01:24]} 23. Rg3 {[%clk 0:00:26]}  Nh5 {[%clk 0:01:24]} 24. Rg4 {[%clk 0:00:19]}  Bc6 {[%clk 0:01:03]} 25. Qe3 {[%clk 0:00:17]}  Nb3 {[%clk 0:00:59]} 26. Bxe4 {[%clk 0:00:16]}  Bxe4 {[%clk 0:00:54]} 27. Qxe4 {[%clk 0:00:16]}  g6 {[%clk 0:00:53]} 28. Qxa8 {[%clk 0:00:13]}  Nf6 {[%clk 0:00:48]} 29. Rd8 {[%clk 0:00:11]}  Qxd8 {[%clk 0:00:42]} 30. Qxd8 {[%clk 0:00:10]}  Nxg4 {[%clk 0:00:42]} 31. Nd6 {[%clk 0:00:08]}  Kg7 {[%clk 0:00:39]} 32. Qd7 {[%clk 0:00:06]} 1-0


[Site "https://www.chess.com"]

[Event "Titled Tuesday Blitz December 7 2021"]
[White "Krivonosov, Oleg"]
[Black "Mitusov, Semen"]
[WhiteFideId "11600349"]
[BlackFideId "14151049"]
[WhiteElo "2739"]
[BlackElo "2587"]
[Result "1-0"]
[Round "08"]
[TimeControl "180+1"]
[Date "2021.12.07"]
[WhiteClock "0:00:12"]
[BlackClock "0:00:17"]

1. Nf3 {[%clk 0:03:00]}  d5 {[%clk 0:02:59]} 2. d4 {[%clk 0:03:00]}  Bf5 {[%clk 0:02:57]} 3. c4 {[%clk 0:02:59]}  e6 {[%clk 0:02:58]} 4. Qb3 {[%clk 0:02:57]}  Nc6 {[%clk 0:02:58]} 5. Bd2 {[%clk 0:02:57]}  Rb8 {[%clk 0:02:47]} 6. cxd5 {[%clk 0:02:54]}  exd5 {[%clk 0:02:46]} 7. Nc3 {[%clk 0:02:53]}  Nf6 {[%clk 0:02:44]} 8. Bg5 {[%clk 0:02:52]}  Bb4 {[%clk 0:02:34]} 9. e3 {[%clk 0:02:49]}  O-O {[%clk 0:02:32]} 10. Be2 {[%clk 0:02:48]}  Be6 {[%clk 0:02:19]} 11. O-O {[%clk 0:02:44]}  Be7 {[%clk 0:02:06]} 12. Rac1 {[%clk 0:02:39]}  h6 {[%clk 0:02:06]} 13. Bxf6 {[%clk 0:02:36]}  Bxf6 {[%clk 0:02:06]} 14. Na4 {[%clk 0:02:35]}  Ne7 {[%clk 0:01:58]} 15. Nc5 {[%clk 0:02:32]}  Bg4 {[%clk 0:01:54]} 16. h3 {[%clk 0:02:26]}  Bh5 {[%clk 0:01:43]} 17. Rfe1 {[%clk 0:02:21]}  Qc8 {[%clk 0:01:36]} 18. Qc2 {[%clk 0:02:17]}  c6 {[%clk 0:01:33]} 19. b4 {[%clk 0:02:13]}  Qd8 {[%clk 0:01:29]} 20. a4 {[%clk 0:02:10]}  Qd6 {[%clk 0:01:24]} 21. Ne5 {[%clk 0:01:57]}  Bxe2 {[%clk 0:01:14]} 22. Rxe2 {[%clk 0:01:57]}  Bxe5 {[%clk 0:00:53]} 23. dxe5 {[%clk 0:01:57]}  Qc7 {[%clk 0:00:53]} 24. e6 {[%clk 0:01:44]}  Rbd8 {[%clk 0:00:49]} 25. exf7+ {[%clk 0:01:29]}  Kxf7 {[%clk 0:00:48]} 26. b5 {[%clk 0:01:23]}  Rd6 {[%clk 0:00:46]} 27. Qb3 {[%clk 0:01:18]}  Kg8 {[%clk 0:00:44]} 28. Ne4 {[%clk 0:01:05]}  Rg6 {[%clk 0:00:41]} 29. bxc6 {[%clk 0:01:00]}  bxc6 {[%clk 0:00:40]} 30. Ng3 {[%clk 0:00:46]}  Kh7 {[%clk 0:00:39]} 31. Qc2 {[%clk 0:00:43]}  Kh8 {[%clk 0:00:39]} 32. e4 {[%clk 0:00:38]}  d4 {[%clk 0:00:34]} 33. Qd3 {[%clk 0:00:37]}  c5 {[%clk 0:00:33]} 34. Rec2 {[%clk 0:00:31]}  Rc6 {[%clk 0:00:31]} 35. Rc4 {[%clk 0:00:27]}  Ng6 {[%clk 0:00:30]} 36. Qc2 {[%clk 0:00:22]}  Ne5 {[%clk 0:00:30]} 37. Rxc5 {[%clk 0:00:21]}  Rxc5 {[%clk 0:00:20]} 38. Qxc5 {[%clk 0:00:22]}  Qxc5 {[%clk 0:00:11]} 39. Rxc5 {[%clk 0:00:23]}  Re8 {[%clk 0:00:08]} 40. Rd5 {[%clk 0:00:22]}  d3 {[%clk 0:00:08]} 41. f4 {[%clk 0:00:21]}  Nc4 {[%clk 0:00:06]} 42. Rxd3 {[%clk 0:00:20]}  Nb6 {[%clk 0:00:07]} 43. a5 {[%clk 0:00:20]}  Nc4 {[%clk 0:00:07]} 44. a6 {[%clk 0:00:20]}  Re6 {[%clk 0:00:07]} 45. e5 {[%clk 0:00:19]}  Rxa6 {[%clk 0:00:06]} 46. Rd8+ {[%clk 0:00:18]}  Kh7 {[%clk 0:00:06]} 47. Rd7 {[%clk 0:00:19]}  Ra1+ {[%clk 0:00:06]} 48. Kh2 {[%clk 0:00:19]}  Ne3 {[%clk 0:00:06]} 49. Nh5 {[%clk 0:00:17]}  Nf1+ {[%clk 0:00:06]} 50. Kg1 {[%clk 0:00:16]}  Ng3+ {[%clk 0:00:06]} 51. Kf2 {[%clk 0:00:16]}  Nxh5 {[%clk 0:00:07]} 52. e6 {[%clk 0:00:11]}  Nf6 {[%clk 0:00:05]} 53. Rf7 {[%clk 0:00:09]}  Ra6 {[%clk 0:00:05]} 54. f5 {[%clk 0:00:08]}  Ra4 {[%clk 0:00:04]} 55. g4 {[%clk 0:00:08]}  Re4 {[%clk 0:00:04]} 56. Kf3 {[%clk 0:00:08]}  Re1 {[%clk 0:00:04]} 57. Rxa7 {[%clk 0:00:07]}  Nd5 {[%clk 0:00:04]} 58. Rd7 {[%clk 0:00:06]}  Nf6 {[%clk 0:00:04]} 59. Rf7 {[%clk 0:00:06]}  h5 {[%clk 0:00:04]} 60. g5 {[%clk 0:00:06]}  Nd5 {[%clk 0:00:05]} 61. f6 {[%clk 0:00:06]}  Kg6 {[%clk 0:00:05]} 62. Rxg7+ {[%clk 0:00:05]}  Kf5 {[%clk 0:00:06]} 63. e7 {[%clk 0:00:05]}  Nc7 {[%clk 0:00:06]} 64. Rg8 {[%clk 0:00:05]}  Rf1+ {[%clk 0:00:04]} 65. Kg2 {[%clk 0:00:05]}  Re1 {[%clk 0:00:04]} 66. f7 {[%clk 0:00:05]}  Rxe7 {[%clk 0:00:05]} 67. f8=Q+ {[%clk 0:00:05]}  Ke6 {[%clk 0:00:06]} 68. Qxe7+ {[%clk 0:00:05]}  Kxe7 {[%clk 0:00:06]} 69. Rg7+ {[%clk 0:00:06]}  Kd6 {[%clk 0:00:07]} 70. Rxc7 {[%clk 0:00:07]}  Kxc7 {[%clk 0:00:07]} 71. Kg3 {[%clk 0:00:07]}  Kd7 {[%clk 0:00:08]} 72. Kh4 {[%clk 0:00:08]}  Ke6 {[%clk 0:00:09]} 73. Kxh5 {[%clk 0:00:08]}  Kf7 {[%clk 0:00:10]} 74. g6+ {[%clk 0:00:09]}  Kg8 {[%clk 0:00:10]} 75. Kg5 {[%clk 0:00:09]}  Kg7 {[%clk 0:00:11]} 76. h4 {[%clk 0:00:10]}  Kg8 {[%clk 0:00:12]} 77. h5 {[%clk 0:00:11]}  Kg7 {[%clk 0:00:12]} 78. h6+ {[%clk 0:00:11]}  Kh8 {[%clk 0:00:13]} 79. Kf5 {[%clk 0:00:11]}  Kg8 {[%clk 0:00:14]} 80. Kf6 {[%clk 0:00:12]}  Kh8 {[%clk 0:00:15]} 81. g7+ {[%clk 0:00:12]}  Kg8 {[%clk 0:00:14]} 82. Ke7 {[%clk 0:00:12]}  Kh7 {[%clk 0:00:15]} 83. Kf7 {[%clk 0:00:12]}  Kxh6 {[%clk 0:00:15]} 84. g8=Q {[%clk 0:00:12]}  Kh5 {[%clk 0:00:16]} 85. Kf6 {[%clk 0:00:12]}  Kh6 {[%clk 0:00:17]} 86. Qg6# {[%clk 0:00:12]} 1-0


[Site "https://www.chess.com"]

[Event "Titled Tuesday Blitz December 7 2021"]
[White "Maly, Alexey"]
[Black "Gaehwiler, Gabriel"]
[WhiteFideId "14103184"]
[BlackFideId "1314530"]
[WhiteElo "2826"]
[BlackElo "2701"]
[Result "1/2-1/2"]
[Round "08"]
[TimeControl "180+1"]
[Date "2021.12.07"]
[WhiteClock "0:01:37"]
[BlackClock "0:01:07"]

1. d4 {[%clk 0:03:00]}  Nf6 {[%clk 0:02:59]} 2. c4 {[%clk 0:03:00]}  g6 {[%clk 0:02:59]} 3. Nc3 {[%clk 0:03:00]}  Bg7 {[%clk 0:03:00]} 4. e4 {[%clk 0:03:01]}  O-O {[%clk 0:03:00]} 5. Be2 {[%clk 0:03:01]}  d6 {[%clk 0:03:00]} 6. Nf3 {[%clk 0:03:02]}  e5 {[%clk 0:03:01]} 7. O-O {[%clk 0:03:02]}  Bg4 {[%clk 0:03:01]} 8. d5 {[%clk 0:03:01]}  a5 {[%clk 0:03:00]} 9. Ne1 {[%clk 0:03:01]}  Bd7 {[%clk 0:03:00]} 10. Be3 {[%clk 0:03:00]}  Na6 {[%clk 0:02:59]} 11. Nd3 {[%clk 0:02:58]}  b6 {[%clk 0:02:54]} 12. a3 {[%clk 0:02:58]}  a4 {[%clk 0:02:50]} 13. f3 {[%clk 0:02:45]}  Nc5 {[%clk 0:02:40]} 14. Nxc5 {[%clk 0:02:45]}  bxc5 {[%clk 0:02:36]} 15. Rb1 {[%clk 0:02:45]}  Nh5 {[%clk 0:02:34]} 16. g3 {[%clk 0:02:41]}  f5 {[%clk 0:02:21]} 17. Bf2 {[%clk 0:02:36]}  Bh6 {[%clk 0:02:00]} 18. exf5 {[%clk 0:02:28]}  Bxf5 {[%clk 0:01:34]} 19. Bd3 {[%clk 0:02:14]}  Ng7 {[%clk 0:01:30]} 20. Ne4 {[%clk 0:02:06]}  Bd7 {[%clk 0:01:25]} 21. Kg2 {[%clk 0:02:04]}  Nf5 {[%clk 0:01:24]} 22. Qe2 {[%clk 0:01:54]}  Qc8 {[%clk 0:01:17]} 23. Kg1 {[%clk 0:01:50]}  Nd4 {[%clk 0:01:13]} 24. Bxd4 {[%clk 0:01:50]}  exd4 {[%clk 0:01:11]} 25. f4 {[%clk 0:01:46]}  Bg4 {[%clk 0:01:09]} 26. Qd2 {[%clk 0:01:41]}  Bf5 {[%clk 0:01:07]} 27. Rfe1 {[%clk 0:01:37]} 1/2-1/2


[Site "https://www.chess.com"]